[Event "MTS Logistics 2017"]
[Site "Urla"]
[Date "2017.07.11"]
[Round "7.4"]
[White "Ozen, Bahadir"]
[Black "Arat, Ufuk Sezen"]
[Result "1-0"]
[ECO "B10"]
[WhiteElo "2315"]
[BlackElo "2400"]
[Annotator "ChessBase"]
[PlyCount "97"]
[EventDate "2017.??.??"]
[EventType "schev"]
[EventCountry "TUR"]
[SourceTitle "playchess.com"]
[Source "ChessBase"]
[SourceQuality "1"]
[TimeControl "5400+30"]

1. g3 {[%emt 0:00:30]} Nf6 {[%emt 0:04:00]} 2. Bg2 {[%emt 0:00:30]} d5 {[%emt 0:00:30]} 3. d3 {[%emt 0:00:30]} e5 {[%emt 0:05:30]} 4. Nf3 {[%emt 0:00:30]} Nbd7 {[%emt 0:04:30]} 5. O-O {[%emt 0:00:30]} Bd6 {[%emt 0:01:30]} 6. Nbd2 {[%emt 0:05:30]} O-O {[%emt 0:02:30]} 7. e4 {[%emt 0:00:30]} c6 {[%emt 0:00:30]} 8. b3 {[%emt 0:01:30]} a5 {[%emt 0:01:30]} 9. a4 {[%emt 0:02:30]} Re8 {[%emt 0:02:30]} 10. Bb2 {[%emt 0:01:30]} Qc7 {[%emt 0:02:30]} 11. Re1 {[%emt 0:00:30]} d4 {[%emt 0:11:30]} 12. c3 {[%emt 0:01:30]} dxc3 {[%emt 0:12:30]} 13. Bxc3 {[%emt 0:00:30]} Bb4 {[%emt 0:02:30]} 14. Qc2 {[%emt 0:01:30]} b6 {[%emt 0:14:30]} 15. d4 {[%emt 0:04:30]} Ba6 {[%emt 0:02:30]} 16. dxe5 {[%emt 0:14:30]} Bxc3 {[%emt 0:01:30]} 17. Qxc3 {[%emt 0:00:30]} Nxe5 {[%emt 0:00:30]} 18. Nxe5 {[%emt 0:11:30]} Rxe5 {[%emt 0:00:00]} 19. f4 {[%emt 0:00:30]} Rc5 {[%emt 0:02:00]} 20. Qb2 {[%emt 0:02:30]} b5 {[%emt 0:03:30]} 21. e5 {[%emt 0:05:30]} Ng4 {[%emt 0:04:47]} 22. Ne4 {[%emt 0:01:30]} Rd5 {[%emt 0:01:08]} 23. Bf3 {[%emt 0:03:30]} Qb6+ {[%emt 0:03:10]} 24. Kh1 {[%emt 0:00:30]} h5 {[%emt 0:01:38]} 25. Qc2 {[%emt 0:12:30]} bxa4 {[%emt 0:03:02]} 26. bxa4 {[%emt 0:02:30]} Bd3 {[%emt 0:00:44]} 27. Qc3 {[%emt 0:00:30]} Bxe4 {[%emt 0:01:16]} 28. Bxe4 {[%emt 0:00:30]} Qf2 {[%emt 0:00:37]} 29. Bg2 {[%emt 0:00:30]} Rc5 {[%emt 0:03:17]} 30. Qf3 {[%emt 0:00:30]} Qd4 {[%emt 0:01:19]} 31. Ra3 {[%emt 0:07:35]} Nf2+ {[%emt 0:00:17]} 32. Kg1 {[%emt 0:00:06]} Ng4+ {[%emt 0:00:01]} 33. Kh1 {[%emt 0:00:00]} Rb8 {[%emt 0:03:15]} 34. h3 {[%emt 0:01:06]} Nf2+ {[%emt 0:00:08]} 35. Kh2 {[%emt 0:00:01]} Rb2 {[%emt 0:00:57]} 36. Rb3 {[%emt 0:03:57]} Rxb3 {[%emt 0:03:55]} 37. Qxb3 {[%emt 0:00:01]} h4 {[%emt 0:01:42]} 38. e6 {[%emt 0:04:47]} hxg3+ {[%emt 0:00:05]} 39. Qxg3 {[%emt 0:00:04]} fxe6 {[%emt 0:00:01]} 40. Re2 {[%emt 0:04:23]} Nd1 {[%emt 0:02:02]} 41. Rxe6 {[%emt 0:00:27]} Nc3 {[%emt 0:00:37]} 42. Qg4 {[%emt 0:01:52]} Qf2 {[%emt 0:00:29]} 43. Re8+ {[%emt 0:00:57]} Kh7 {[%emt 0:00:07]} 44. Re7 {[%emt 0:00:07]} Qd4 {[%emt 0:00:09]} 45. Qh4+ {[%emt 0:00:31]} Kg8 {[%emt 0:00:02]} 46. Re8+ {[%emt 0:02:31]} Kf7 {[%emt 0:00:01]} 47. Qe7+ {[%emt 0:00:03]} Kg6 {[%emt 0:00:08]} 48. Rf8 {[%emt 0:01:09]} Rf5 {[%emt 0:02:01]} 49. Qe8+ {[%emt 0:00:09]} 1-0

[Event "MTS Logistics 2017"]
[Site "Urla"]
[Date "2017.07.11"]
[Round "8.2"]
[White "Arat, Ufuk Sezen"]
[Black "Gokerkan, Cem Kaan"]
[Result "1-0"]
[ECO "A49"]
[WhiteElo "2400"]
[BlackElo "2321"]
[Annotator "ChessBase"]
[PlyCount "95"]
[EventDate "2017.??.??"]
[EventType "schev"]
[EventCountry "TUR"]
[SourceTitle "playchess.com"]
[Source "ChessBase"]
[SourceQuality "1"]
[TimeControl "5400+30"]

1. Nf3 {[%emt 0:01:30]} Nf6 {[%emt 0:01:00]} 2. g3 {[%emt 0:07:30]} g6 {[%emt 0:00:30]} 3. d4 {[%emt 0:01:30]} Bg7 {[%emt 0:00:30]} 4. c4 {[%emt 0:00:00]} c6 {[%emt 0:00:00]} 5. Bg2 {[%emt 0:01:00]} O-O {[%emt 0:00:00]} 6. O-O {[%emt 0:00:30]} d5 {[%emt 0:00:30]} 7. b3 {[%emt 0:00:00]} dxc4 {[%emt 0:00:00]} 8. bxc4 {[%emt 0:00:00]} c5 {[%emt 0:00:00]} 9. Bb2 {[%emt 0:00:00]} cxd4 {[%emt 0:00:30]} 10. Nxd4 {[%emt 0:01:00]} Qb6 {[%emt 0:00:00]} 11. Nb3 {[%emt 0:06:30]} Rd8 {[%emt 0:10:00]} 12. Qc1 {[%emt 0:00:30]} Nc6 {[%emt 0:02:30]} 13. Nc3 {[%emt 0:10:30]} Na5 {[%emt 0:11:30]} 14. Nxa5 {[%emt 0:09:30]} Qxa5 {[%emt 0:00:30]} 15. Nd5 {[%emt 0:00:00]} Nxd5 {[%emt 0:02:30]} 16. cxd5 {[%emt 0:00:00]} Bxb2 {[%emt 0:07:30]} 17. Qxb2 {[%emt 0:00:30]} e6 {[%emt 0:13:30]} 18. e4 {[%emt 0:01:30]} exd5 {[%emt 0:00:30]} 19. exd5 {[%emt 0:00:30]} Qb6 {[%emt 0:00:30]} 20. Rab1 {[%emt 0:29:30]} Qxb2 {[%emt 0:01:30]} 21. Rxb2 {[%emt 0:00:30]} b6 {[%emt 0:03:30]} 22. d6 {[%emt 0:00:30]} Rb8 {[%emt 0:02:30]} 23. Rd2 {[%emt 0:00:00]} Be6 {[%emt 0:00:30]} 24. Rc1 {[%emt 0:05:00]} b5 {[%emt 0:07:30]} 25. Rc6 {[%emt 0:06:28]} b4 {[%emt 0:05:30]} 26. Ra6 {[%emt 0:04:27]} Rb6 {[%emt 0:07:30]} 27. Rxb6 {[%emt 0:00:34]} axb6 {[%emt 0:00:00]} 28. f4 {[%emt 0:05:03]} Kg7 {[%emt 0:00:00]} 29. Kf2 {[%emt 0:00:09]} Kf6 {[%emt 0:00:30]} 30. Ke3 {[%emt 0:02:21]} Bf5 {[%emt 0:00:30]} 31. Bc6 {[%emt 0:01:16]} Ke6 {[%emt 0:01:30]} 32. Bd5+ {[%emt 0:00:31]} Kf6 {[%emt 0:00:30]} 33. Bb3 {[%emt 0:02:18]} Be6 {[%emt 0:01:30]} 34. Rd4 {[%emt 0:01:33]} Bxb3 {[%emt 0:01:30]} 35. axb3 {[%emt 0:00:01]} Ke6 {[%emt 0:00:00]} 36. d7 {[%emt 0:00:37]} Rxd7 {[%emt 0:01:00]} 37. Rxd7 {[%emt 0:00:42]} Kxd7 {[%emt 0:00:30]} 38. Kd4 {[%emt 0:00:33]} Kc6 {[%emt 0:00:30]} 39. Ke5 {[%emt 0:01:25]} Kc5 {[%emt 0:13:34]} 40. g4 {[%emt 0:00:18]} Kc6 {[%emt 0:03:47]} 41. g5 {[%emt 0:00:46]} Kc5 {[%emt 0:03:15]} 42. h3 {[%emt 0:00:13]} Kc6 {[%emt 0:00:23]} 43. Kf6 {[%emt 0:02:14]} Kd5 {[%emt 0:00:53]} 44. Kxf7 {[%emt 0:00:04]} Kd4 {[%emt 0:00:29]} 45. Kg7 {[%emt 0:00:08]} Kc3 {[%emt 0:00:01]} 46. Kxh7 {[%emt 0:00:06]} Kxb3 {[%emt 0:00:01]} 47. f5 {[%emt 0:00:07]} Ka3 {[%emt 0:01:26]} 48. f6 {[%emt 0:00:26]} 1-0